[Event "Titled Tuesday Blitz August 1 Early 2023"]
[White "Harsh Suresh"]
[Black "Naroditsky, Daniel"]
[WhiteFideId "45018464"]
[BlackFideId "2026961"]
[WhiteElo "2898"]
[BlackElo "3094"]
[Result "0-1"]
[Round "10"]
[TimeControl "180+1"]
[Date "2023.08.01"]
[WhiteClock "0:00:09"]
[BlackClock "0:00:07"]
[Board "7"]

1. d4 {[%clk 0:02:58]}  Nf6 {[%clk 0:03:00]} 2. c4 {[%clk 0:02:55]}  g6 {[%clk 0:03:00]} 3. g3 {[%clk 0:02:53]}  Bg7 {[%clk 0:03:01]} 4. Bg2 {[%clk 0:02:53]}  O-O {[%clk 0:02:57]} 5. Nc3 {[%clk 0:02:53]}  d6 {[%clk 0:02:58]} 6. Nf3 {[%clk 0:02:53]}  Nbd7 {[%clk 0:02:59]} 7. O-O {[%clk 0:02:53]}  e5 {[%clk 0:02:59]} 8. dxe5 {[%clk 0:02:51]}  dxe5 {[%clk 0:02:59]} 9. Bg5 {[%clk 0:02:50]}  h6 {[%clk 0:02:58]} 10. Bxf6 {[%clk 0:02:50]}  Qxf6 {[%clk 0:02:59]} 11. Nd2 {[%clk 0:02:50]}  c6 {[%clk 0:02:40]} 12. Nde4 {[%clk 0:02:49]}  Qe6 {[%clk 0:02:40]} 13. Nd6 {[%clk 0:02:21]}  Rd8 {[%clk 0:02:31]} 14. Nxc8 {[%clk 0:02:19]}  Raxc8 {[%clk 0:02:32]} 15. b3 {[%clk 0:02:17]}  e4 {[%clk 0:02:22]} 16. Qc2 {[%clk 0:02:12]}  f5 {[%clk 0:02:21]} 17. Rad1 {[%clk 0:02:11]}  Qe5 {[%clk 0:02:16]} 18. Nb1 {[%clk 0:02:05]}  Nc5 {[%clk 0:02:16]} 19. h4 {[%clk 0:01:57]}  h5 {[%clk 0:02:07]} 20. Qc1 {[%clk 0:01:42]}  Kf7 {[%clk 0:01:54]} 21. Rfe1 {[%clk 0:01:26]}  a5 {[%clk 0:01:49]} 22. Bf1 {[%clk 0:01:25]}  e3 {[%clk 0:01:44]} 23. f4 {[%clk 0:01:13]}  Qe7 {[%clk 0:01:38]} 24. Bg2 {[%clk 0:01:13]}  Ne6 {[%clk 0:01:24]} 25. Na3 {[%clk 0:01:03]}  Qc5 {[%clk 0:00:48]} 26. Nc2 {[%clk 0:01:01]}  Rd2 {[%clk 0:00:47]} 27. Bf3 {[%clk 0:00:50]}  Rcd8 {[%clk 0:00:44]} 28. Kg2 {[%clk 0:00:50]}  Bb2 {[%clk 0:00:40]} 29. Qb1 {[%clk 0:00:35]}  Bc3 {[%clk 0:00:40]} 30. Rf1 {[%clk 0:00:35]}  Nd4 {[%clk 0:00:23]} 31. Nxd4 {[%clk 0:00:21]}  Qxd4 {[%clk 0:00:24]} 32. Rc1 {[%clk 0:00:18]}  Rb2 {[%clk 0:00:22]} 33. Rcd1 {[%clk 0:00:10]}  Rxb1 {[%clk 0:00:14]} 34. Rxd4 {[%clk 0:00:10]}  Rxf1 {[%clk 0:00:14]} 35. Rxd8 {[%clk 0:00:09]}  Rf2+ {[%clk 0:00:15]} 36. Kg1 {[%clk 0:00:08]}  Rxf3 {[%clk 0:00:16]} 37. Rd3 {[%clk 0:00:08]}  Rxg3+ {[%clk 0:00:09]} 38. Kh2 {[%clk 0:00:07]}  Be1 {[%clk 0:00:09]} 39. Rd1 {[%clk 0:00:06]}  Bf2 {[%clk 0:00:10]} 40. Rd7+ {[%clk 0:00:06]}  Ke6 {[%clk 0:00:10]} 41. Rxb7 {[%clk 0:00:07]}  Rg4 {[%clk 0:00:11]} 42. Rc7 {[%clk 0:00:06]}  Kd6 {[%clk 0:00:11]} 43. Ra7 {[%clk 0:00:03]}  Rxh4+ {[%clk 0:00:11]} 44. Kg2 {[%clk 0:00:03]}  Rg4+ {[%clk 0:00:12]} 45. Kh2 {[%clk 0:00:04]}  Rxf4 {[%clk 0:00:12]} 46. Rxa5 {[%clk 0:00:04]}  g5 {[%clk 0:00:12]} 47. Ra8 {[%clk 0:00:03]}  Rh4+ {[%clk 0:00:08]} 48. Kg2 {[%clk 0:00:03]}  g4 {[%clk 0:00:09]} 49. a4 {[%clk 0:00:03]}  f4 {[%clk 0:00:06]} 50. a5 {[%clk 0:00:03]}  f3+ {[%clk 0:00:04]} 51. exf3 {[%clk 0:00:04]}  g3 {[%clk 0:00:05]} 52. Re8 {[%clk 0:00:04]}  Rh2+ {[%clk 0:00:04]} 53. Kf1 {[%clk 0:00:04]}  g2+ {[%clk 0:00:05]} 54. Ke2 {[%clk 0:00:05]}  g1=Q {[%clk 0:00:06]} 55. Rd8+ {[%clk 0:00:05]}  Kc7 {[%clk 0:00:06]} 56. Rd1 {[%clk 0:00:06]}  Bg3+ {[%clk 0:00:05]} 57. Kd3 {[%clk 0:00:06]}  Qxd1+ {[%clk 0:00:06]} 58. Kxe3 {[%clk 0:00:07]}  Qd2+ {[%clk 0:00:04]} 59. Ke4 {[%clk 0:00:07]}  Re2+ {[%clk 0:00:04]} 60. Kf5 {[%clk 0:00:07]}  Qf4+ {[%clk 0:00:05]} 61. Kg6 {[%clk 0:00:08]}  Re6+ {[%clk 0:00:05]} 62. Kg7 {[%clk 0:00:08]}  Qf6+ {[%clk 0:00:06]} 63. Kg8 {[%clk 0:00:09]}  Re8+ {[%clk 0:00:06]} 64. Kh7 {[%clk 0:00:09]}  Rh8# {[%clk 0:00:07]} 0-1


[Site "https://www.chess.com"]

[Event "Titled Tuesday Blitz August 1 Early 2023"]
[White "Kazakouski, Valery"]
[Black "Kramnik, Vladimir"]
[WhiteFideId "13507443"]
[BlackFideId "4101588"]
[WhiteElo "2857"]
[BlackElo "2980"]
[Result "1-0"]
[Round "10"]
[TimeControl "180+1"]
[Date "2023.08.01"]
[WhiteClock "0:00:08"]
[BlackClock "0:00:00"]
[Board "12"]

1. Nf3 {[%clk 0:03:00]}  Nf6 {[%clk 0:02:59]} 2. c4 {[%clk 0:03:01]}  c5 {[%clk 0:02:59]} 3. b3 {[%clk 0:02:59]}  Nc6 {[%clk 0:02:56]} 4. Bb2 {[%clk 0:02:58]}  d5 {[%clk 0:02:57]} 5. cxd5 {[%clk 0:02:59]}  Nxd5 {[%clk 0:02:57]} 6. Nc3 {[%clk 0:02:59]}  e5 {[%clk 0:02:56]} 7. Nxd5 {[%clk 0:02:58]}  Qxd5 {[%clk 0:02:55]} 8. e3 {[%clk 0:02:58]}  e4 {[%clk 0:02:47]} 9. Bc4 {[%clk 0:02:55]}  Qf5 {[%clk 0:02:39]} 10. Nh4 {[%clk 0:02:37]}  Qg5 {[%clk 0:02:36]} 11. g3 {[%clk 0:02:37]}  Bd6 {[%clk 0:02:30]} 12. Qc2 {[%clk 0:02:18]}  Qe7 {[%clk 0:02:27]} 13. Bxg7 {[%clk 0:02:10]}  Rg8 {[%clk 0:02:28]} 14. Bc3 {[%clk 0:02:02]}  Rg5 {[%clk 0:02:07]} 15. f3 {[%clk 0:01:52]}  exf3 {[%clk 0:01:57]} 16. Nxf3 {[%clk 0:01:53]}  Rg6 {[%clk 0:01:45]} 17. Nh4 {[%clk 0:01:45]}  Bg4 {[%clk 0:01:33]} 18. Nxg6 {[%clk 0:01:41]}  hxg6 {[%clk 0:01:34]} 19. Rf1 {[%clk 0:01:41]}  f5 {[%clk 0:01:32]} 20. Be2 {[%clk 0:01:23]}  Bxe2 {[%clk 0:01:28]} 21. Kxe2 {[%clk 0:01:23]}  O-O-O {[%clk 0:01:26]} 22. Rf2 {[%clk 0:01:17]}  Kb8 {[%clk 0:01:25]} 23. Kf1 {[%clk 0:01:07]}  Ne5 {[%clk 0:01:11]} 24. Bxe5 {[%clk 0:01:05]}  Bxe5 {[%clk 0:01:09]} 25. Re1 {[%clk 0:01:04]}  Qd6 {[%clk 0:01:00]} 26. Qc4 {[%clk 0:00:45]}  Rh8 {[%clk 0:00:51]} 27. Rc1 {[%clk 0:00:40]}  b6 {[%clk 0:00:41]} 28. d4 {[%clk 0:00:40]}  cxd4 {[%clk 0:00:22]} 29. exd4 {[%clk 0:00:41]}  Bg7 {[%clk 0:00:20]} 30. Kg2 {[%clk 0:00:26]}  Rd8 {[%clk 0:00:17]} 31. Re2 {[%clk 0:00:19]}  Qd7 {[%clk 0:00:16]} 32. Qc6 {[%clk 0:00:12]}  g5 {[%clk 0:00:14]} 33. Qxd7 {[%clk 0:00:10]}  Rxd7 {[%clk 0:00:14]} 34. Rf1 {[%clk 0:00:11]}  Rd5 {[%clk 0:00:12]} 35. Ref2 {[%clk 0:00:11]}  Rxd4 {[%clk 0:00:11]} 36. Rxf5 {[%clk 0:00:11]}  g4 {[%clk 0:00:09]} 37. R5f4 {[%clk 0:00:11]}  Rd2+ {[%clk 0:00:08]} 38. R1f2 {[%clk 0:00:12]}  Rd1 {[%clk 0:00:09]} 39. Rxg4 {[%clk 0:00:12]}  Bd4 {[%clk 0:00:08]} 40. Rf8+ {[%clk 0:00:12]}  Kb7 {[%clk 0:00:08]} 41. Re4 {[%clk 0:00:13]}  Rd2+ {[%clk 0:00:07]} 42. Kh3 {[%clk 0:00:12]}  Bc5 {[%clk 0:00:07]} 43. Rf1 {[%clk 0:00:11]}  Rxa2 {[%clk 0:00:06]} 44. b4 {[%clk 0:00:11]}  Bd6 {[%clk 0:00:06]} 45. Rd1 {[%clk 0:00:11]}  Kc6 {[%clk 0:00:00]} 46. Re6 {[%clk 0:00:08]} 1-0


[Site "https://www.chess.com"]

[Event "Titled Tuesday Blitz August 1 Early 2023"]
[White "Kaczur, Florian"]
[Black "Makarian, Rudik"]
[WhiteFideId "705098"]
[BlackFideId "44105681"]
[WhiteElo "2791"]
[BlackElo "3009"]
[Result "0-1"]
[Round "10"]
[TimeControl "180+1"]
[Date "2023.08.01"]
[WhiteClock "0:01:04"]
[BlackClock "0:01:34"]
[Board "15"]

1. b3 {[%clk 0:03:00]}  d5 {[%clk 0:02:59]} 2. Bb2 {[%clk 0:03:01]}  Bg4 {[%clk 0:02:59]} 3. f3 {[%clk 0:03:00]}  Bd7 {[%clk 0:02:59]} 4. e4 {[%clk 0:02:59]}  Nf6 {[%clk 0:02:59]} 5. Qe2 {[%clk 0:02:55]}  e6 {[%clk 0:02:52]} 6. exd5 {[%clk 0:02:50]}  Nxd5 {[%clk 0:02:52]} 7. Nc3 {[%clk 0:02:50]}  Nxc3 {[%clk 0:02:49]} 8. Bxc3 {[%clk 0:02:51]}  Nc6 {[%clk 0:02:49]} 9. Qe3 {[%clk 0:02:49]}  e5 {[%clk 0:02:35]} 10. Bb5 {[%clk 0:02:41]}  Bd6 {[%clk 0:02:16]} 11. Bxc6 {[%clk 0:02:33]}  Bxc6 {[%clk 0:02:17]} 12. Bxe5 {[%clk 0:02:32]}  O-O {[%clk 0:02:17]} 13. Bxd6 {[%clk 0:02:32]}  Qxd6 {[%clk 0:02:18]} 14. O-O-O {[%clk 0:02:32]}  Rfe8 {[%clk 0:02:18]} 15. Qc3 {[%clk 0:02:28]}  a5 {[%clk 0:02:18]} 16. Nh3 {[%clk 0:02:12]}  a4 {[%clk 0:02:14]} 17. b4 {[%clk 0:02:09]}  a3 {[%clk 0:02:11]} 18. Qc5 {[%clk 0:01:48]}  Qf6 {[%clk 0:01:57]} 19. c3 {[%clk 0:01:47]}  Ba4 {[%clk 0:01:51]} 20. Rde1 {[%clk 0:01:44]}  Qg6 {[%clk 0:01:51]} 21. Re4 {[%clk 0:01:21]}  Rxe4 {[%clk 0:01:48]} 22. d3 {[%clk 0:01:16]}  Qxg2 {[%clk 0:01:44]} 23. Nf2 {[%clk 0:01:12]}  Re2 {[%clk 0:01:42]} 24. Qa5 {[%clk 0:01:11]}  Rc2+ {[%clk 0:01:37]} 25. Kb1 {[%clk 0:01:10]}  Rb2+ {[%clk 0:01:37]} 26. Ka1 {[%clk 0:01:04]}  Rxa5 {[%clk 0:01:34]} 0-1


[Site "https://www.chess.com"]

[Event "Titled Tuesday Blitz August 1 Early 2023"]
[White "Bok, Benjamin"]
[Black "Ning, Kaiyu"]
[WhiteFideId "1017063"]
[BlackFideId "8614750"]
[WhiteElo "2951"]
[BlackElo "2773"]
[Result "1-0"]
[Round "10"]
[TimeControl "180+1"]
[Date "2023.08.01"]
[WhiteClock "0:02:57"]
[BlackClock "0:00:46"]
[Board "17"]

1. d4 {[%clk 0:03:00]}  Nf6 {[%clk 0:03:00]} 2. c4 {[%clk 0:02:59]}  e6 {[%clk 0:03:00]} 3. Nc3 {[%clk 0:02:59]}  Bb4 {[%clk 0:03:01]} 4. Qc2 {[%clk 0:02:59]}  d5 {[%clk 0:03:00]} 5. a3 {[%clk 0:02:58]}  Bxc3+ {[%clk 0:03:00]} 6. Qxc3 {[%clk 0:02:59]}  O-O {[%clk 0:03:00]} 7. Bg5 {[%clk 0:02:59]}  c5 {[%clk 0:02:59]} 8. dxc5 {[%clk 0:02:59]}  d4 {[%clk 0:03:00]} 9. Qf3 {[%clk 0:03:00]}  Nbd7 {[%clk 0:02:59]} 10. e3 {[%clk 0:03:00]}  h6 {[%clk 0:02:56]} 11. Bxf6 {[%clk 0:03:00]}  Nxf6 {[%clk 0:02:56]} 12. O-O-O {[%clk 0:03:00]}  e5 {[%clk 0:02:56]} 13. Ne2 {[%clk 0:03:00]}  Bg4 {[%clk 0:02:42]} 14. Qg3 {[%clk 0:03:00]}  d3 {[%clk 0:02:39]} 15. f3 {[%clk 0:03:00]}  Rc8 {[%clk 0:02:37]} 16. Nc3 {[%clk 0:03:00]}  e4 {[%clk 0:02:27]} 17. fxg4 {[%clk 0:02:59]}  Rxc5 {[%clk 0:02:26]} 18. h4 {[%clk 0:03:00]}  Rxc4 {[%clk 0:02:24]} 19. g5 {[%clk 0:03:00]}  Rxc3+ {[%clk 0:01:08]} 20. bxc3 {[%clk 0:03:01]}  Qa5 {[%clk 0:00:52]} 21. Kd2 {[%clk 0:03:01]}  Rb8 {[%clk 0:00:46]} 22. gxf6 {[%clk 0:02:57]} 1-0


[Site "https://www.chess.com"]

[Event "Titled Tuesday Blitz August 1 Early 2023"]
[White "Idani, Pouya"]
[Black "Galchenko, Matvey"]
[WhiteFideId "12510130"]
[BlackFideId "24175480"]
[WhiteElo "2762"]
[BlackElo "2886"]
[Result "1-0"]
[Round "10"]
[TimeControl "180+1"]
[Date "2023.08.01"]
[WhiteClock "0:00:14"]
[BlackClock "0:00:03"]
[Board "19"]

1. e4 {[%clk 0:03:00]}  e6 {[%clk 0:02:59]} 2. d4 {[%clk 0:03:01]}  d5 {[%clk 0:03:00]} 3. e5 {[%clk 0:03:01]}  c5 {[%clk 0:03:00]} 4. c3 {[%clk 0:03:02]}  Qb6 {[%clk 0:03:01]} 5. Nf3 {[%clk 0:03:02]}  Nc6 {[%clk 0:03:01]} 6. a3 {[%clk 0:03:02]}  Nh6 {[%clk 0:03:01]} 7. Bd3 {[%clk 0:03:02]}  cxd4 {[%clk 0:03:00]} 8. O-O {[%clk 0:03:02]}  Bd7 {[%clk 0:02:59]} 9. b4 {[%clk 0:03:01]}  Rc8 {[%clk 0:02:57]} 10. b5 {[%clk 0:02:36]}  Na5 {[%clk 0:02:58]} 11. cxd4 {[%clk 0:02:35]}  Nc4 {[%clk 0:02:56]} 12. a4 {[%clk 0:02:30]}  Nf5 {[%clk 0:02:52]} 13. Bxf5 {[%clk 0:02:24]}  exf5 {[%clk 0:02:53]} 14. Nc3 {[%clk 0:02:24]}  Be6 {[%clk 0:02:53]} 15. Qd3 {[%clk 0:02:20]}  h6 {[%clk 0:02:48]} 16. h4 {[%clk 0:02:19]}  Bb4 {[%clk 0:02:43]} 17. Ne2 {[%clk 0:02:10]}  O-O {[%clk 0:02:33]} 18. Ng3 {[%clk 0:02:09]}  Na5 {[%clk 0:01:54]} 19. Bd2 {[%clk 0:01:54]}  Bxd2 {[%clk 0:01:44]} 20. Nxd2 {[%clk 0:01:55]}  Rc7 {[%clk 0:01:38]} 21. Rac1 {[%clk 0:01:40]}  Rfc8 {[%clk 0:01:37]} 22. Rxc7 {[%clk 0:01:36]}  Qxc7 {[%clk 0:01:37]} 23. Nb3 {[%clk 0:01:01]}  Nxb3 {[%clk 0:01:33]} 24. Qxb3 {[%clk 0:01:02]}  Qc4 {[%clk 0:01:33]} 25. Qd1 {[%clk 0:01:01]}  f4 {[%clk 0:01:23]} 26. Nh5 {[%clk 0:01:00]}  f3 {[%clk 0:01:02]} 27. Qxf3 {[%clk 0:00:59]}  Qxd4 {[%clk 0:01:02]} 28. Qg3 {[%clk 0:00:58]}  g6 {[%clk 0:01:02]} 29. Nf6+ {[%clk 0:00:48]}  Kg7 {[%clk 0:01:00]} 30. h5 {[%clk 0:00:44]}  Rc3 {[%clk 0:00:56]} 31. Qh2 {[%clk 0:00:40]}  g5 {[%clk 0:00:40]} 32. Ne8+ {[%clk 0:00:29]}  Kf8 {[%clk 0:00:40]} 33. Nd6 {[%clk 0:00:29]}  Qxa4 {[%clk 0:00:32]} 34. f4 {[%clk 0:00:28]}  Qd4+ {[%clk 0:00:31]} 35. Kh1 {[%clk 0:00:28]}  Qd3 {[%clk 0:00:30]} 36. Qg1 {[%clk 0:00:26]}  gxf4 {[%clk 0:00:28]} 37. Rf3 {[%clk 0:00:22]}  Qd2 {[%clk 0:00:23]} 38. Rxc3 {[%clk 0:00:22]}  Qxc3 {[%clk 0:00:24]} 39. Qxa7 {[%clk 0:00:22]}  Qe1+ {[%clk 0:00:16]} 40. Kh2 {[%clk 0:00:22]}  Qxe5 {[%clk 0:00:16]} 41. Qb8+ {[%clk 0:00:21]}  Ke7 {[%clk 0:00:17]} 42. Qe8+ {[%clk 0:00:15]}  Kxd6 {[%clk 0:00:03]} 43. Qb8+ {[%clk 0:00:14]} 1-0


[Site "https://www.chess.com"]

[Event "Titled Tuesday Blitz August 1 Early 2023"]
[White "Ter-Sahakyan, Samvel"]
[Black "Javakhadze, Zurab"]
[WhiteFideId "13302531"]
[BlackFideId "13603647"]
[WhiteElo "2842"]
[BlackElo "2739"]
[Result "1-0"]
[Round "10"]
[TimeControl "180+1"]
[Date "2023.08.01"]
[WhiteClock "0:00:07"]
[BlackClock "0:00:00"]
[Board "22"]

1. d4 {[%clk 0:03:00]}  d5 {[%clk 0:02:59]} 2. c4 {[%clk 0:02:59]}  e6 {[%clk 0:02:56]} 3. Nf3 {[%clk 0:02:58]}  Nf6 {[%clk 0:02:50]} 4. Nc3 {[%clk 0:02:56]}  Be7 {[%clk 0:02:43]} 5. Bf4 {[%clk 0:02:55]}  O-O {[%clk 0:02:42]} 6. e3 {[%clk 0:02:56]}  Nbd7 {[%clk 0:02:42]} 7. c5 {[%clk 0:02:50]}  c6 {[%clk 0:02:24]} 8. Bd3 {[%clk 0:02:50]}  Nh5 {[%clk 0:02:21]} 9. O-O {[%clk 0:02:44]}  Nxf4 {[%clk 0:02:20]} 10. exf4 {[%clk 0:02:44]}  b6 {[%clk 0:02:21]} 11. b4 {[%clk 0:02:43]}  a5 {[%clk 0:02:21]} 12. a3 {[%clk 0:02:43]}  Ba6 {[%clk 0:02:16]} 13. Bxa6 {[%clk 0:02:39]}  Rxa6 {[%clk 0:02:17]} 14. Qd3 {[%clk 0:02:29]}  Qa8 {[%clk 0:01:57]} 15. Rab1 {[%clk 0:02:28]}  axb4 {[%clk 0:01:55]} 16. axb4 {[%clk 0:02:29]}  Ra3 {[%clk 0:01:50]} 17. Rfc1 {[%clk 0:02:24]}  Qb7 {[%clk 0:01:37]} 18. g3 {[%clk 0:02:22]}  Rfa8 {[%clk 0:01:38]} 19. Qc2 {[%clk 0:02:17]}  bxc5 {[%clk 0:01:24]} 20. bxc5 {[%clk 0:02:17]}  Qa6 {[%clk 0:01:24]} 21. Kg2 {[%clk 0:02:06]}  Bd8 {[%clk 0:01:24]} 22. Qe2 {[%clk 0:01:26]}  Qa5 {[%clk 0:01:05]} 23. Nd1 {[%clk 0:01:22]}  g6 {[%clk 0:00:55]} 24. Ne3 {[%clk 0:01:21]}  Qa4 {[%clk 0:00:35]} 25. Ng4 {[%clk 0:01:09]}  Nf6 {[%clk 0:00:35]} 26. Nxf6+ {[%clk 0:00:22]}  Bxf6 {[%clk 0:00:36]} 27. Rd1 {[%clk 0:00:22]}  Qc4 {[%clk 0:00:18]} 28. Qxc4 {[%clk 0:00:20]}  dxc4 {[%clk 0:00:19]} 29. Rbc1 {[%clk 0:00:18]}  R8a4 {[%clk 0:00:14]} 30. Rc2 {[%clk 0:00:17]}  c3 {[%clk 0:00:13]} 31. Rd3 {[%clk 0:00:15]}  Rc4 {[%clk 0:00:14]} 32. h4 {[%clk 0:00:14]}  h5 {[%clk 0:00:13]} 33. Kf1 {[%clk 0:00:14]}  Raa4 {[%clk 0:00:08]} 34. Rcxc3 {[%clk 0:00:09]}  Rxc3 {[%clk 0:00:07]} 35. Rxc3 {[%clk 0:00:09]}  Bxd4 {[%clk 0:00:07]} 36. Rc2 {[%clk 0:00:08]}  Bf6 {[%clk 0:00:04]} 37. Ke2 {[%clk 0:00:08]}  Be7 {[%clk 0:00:00]} 38. Ne5 {[%clk 0:00:07]} 1-0


[Site "https://www.chess.com"]

[Event "Titled Tuesday Blitz August 1 Early 2023"]
[White "Bauman_Guy"]
[Black "Skvortsov, Andrei"]
[BlackFideId "24108600"]
[WhiteElo "2796"]
[BlackElo "2734"]
[Result "1-0"]
[Round "10"]
[TimeControl "180+1"]
[Date "2023.08.01"]
[WhiteClock "0:00:40"]
[BlackClock "0:00:08"]
[Board "23"]

1. e4 {[%clk 0:03:00]}  d5 {[%clk 0:03:00]} 2. exd5 {[%clk 0:03:00]}  Qxd5 {[%clk 0:03:01]} 3. Nc3 {[%clk 0:03:01]}  Qe5+ {[%clk 0:03:01]} 4. Be2 {[%clk 0:03:01]}  Bg4 {[%clk 0:03:01]} 5. d4 {[%clk 0:03:00]}  Bxe2 {[%clk 0:03:02]} 6. Ngxe2 {[%clk 0:03:00]}  Qa5 {[%clk 0:03:03]} 7. d5 {[%clk 0:03:00]}  c6 {[%clk 0:03:02]} 8. b4 {[%clk 0:03:00]}  Qxb4 {[%clk 0:02:59]} 9. Rb1 {[%clk 0:03:00]}  Qc4 {[%clk 0:02:59]} 10. Rxb7 {[%clk 0:02:59]}  Nf6 {[%clk 0:03:00]} 11. Rc7 {[%clk 0:02:43]}  Nxd5 {[%clk 0:02:37]} 12. Nxd5 {[%clk 0:02:33]}  Qxd5 {[%clk 0:02:36]} 13. O-O {[%clk 0:02:31]}  Na6 {[%clk 0:02:27]} 14. Rb7 {[%clk 0:02:25]}  Nc5 {[%clk 0:02:24]} 15. Rc7 {[%clk 0:02:22]}  Ne6 {[%clk 0:01:33]} 16. Rb7 {[%clk 0:02:19]}  Nd8 {[%clk 0:01:31]} 17. Rb3 {[%clk 0:02:17]}  e6 {[%clk 0:01:28]} 18. Be3 {[%clk 0:02:13]}  Be7 {[%clk 0:01:17]} 19. Nf4 {[%clk 0:02:13]}  Qa5 {[%clk 0:01:07]} 20. Qg4 {[%clk 0:02:01]}  O-O {[%clk 0:01:02]} 21. Rd1 {[%clk 0:01:43]}  f5 {[%clk 0:00:37]} 22. Qg3 {[%clk 0:01:35]}  Qc7 {[%clk 0:00:32]} 23. Rbd3 {[%clk 0:01:29]}  Bf6 {[%clk 0:00:13]} 24. Rd7 {[%clk 0:01:27]}  Qb8 {[%clk 0:00:14]} 25. h4 {[%clk 0:01:07]}  Nf7 {[%clk 0:00:09]} 26. Bc5 {[%clk 0:00:56]}  Re8 {[%clk 0:00:07]} 27. Qe3 {[%clk 0:00:49]}  e5 {[%clk 0:00:07]} 28. Nh5 {[%clk 0:00:49]}  Bxh4 {[%clk 0:00:07]} 29. Qh3 {[%clk 0:00:45]}  Bg5 {[%clk 0:00:07]} 30. Qxf5 {[%clk 0:00:45]}  Rf8 {[%clk 0:00:06]} 31. Bxf8 {[%clk 0:00:42]}  Qxf8 {[%clk 0:00:07]} 32. Rxf7 {[%clk 0:00:40]}  Qxf7 {[%clk 0:00:08]} 33. Qxg5 {[%clk 0:00:41]}  Rf8 {[%clk 0:00:08]} 34. f3 {[%clk 0:00:41]}  Qxa2 {[%clk 0:00:08]} 35. Qxg7# {[%clk 0:00:40]} 1-0


[Site "https://www.chess.com"]

[Event "Titled Tuesday Blitz August 1 Early 2023"]
[White "Materia, Marco"]
[Black "Ashraf, Artin"]
[WhiteFideId "45150451"]
[BlackFideId "22514805"]
[WhiteElo "2710"]
[BlackElo "2844"]
[Result "1-0"]
[Round "10"]
[TimeControl "180+1"]
[Date "2023.08.01"]
[WhiteClock "0:01:47"]
[BlackClock "0:00:08"]
[Board "25"]

1. d4 {[%clk 0:03:00]}  Nf6 {[%clk 0:02:59]} 2. c4 {[%clk 0:03:01]}  g6 {[%clk 0:02:59]} 3. Nc3 {[%clk 0:03:00]}  Bg7 {[%clk 0:02:59]} 4. Nf3 {[%clk 0:03:00]}  O-O {[%clk 0:02:56]} 5. Bg5 {[%clk 0:03:00]}  d6 {[%clk 0:02:48]} 6. e3 {[%clk 0:03:00]}  Nbd7 {[%clk 0:02:48]} 7. Qc2 {[%clk 0:02:59]}  e5 {[%clk 0:02:48]} 8. Rd1 {[%clk 0:03:00]}  Qe7 {[%clk 0:02:47]} 9. Nd5 {[%clk 0:02:57]}  Qd8 {[%clk 0:02:30]} 10. dxe5 {[%clk 0:02:55]}  dxe5 {[%clk 0:02:28]} 11. Nxe5 {[%clk 0:02:53]}  Nxe5 {[%clk 0:02:19]} 12. Nxf6+ {[%clk 0:02:53]}  Bxf6 {[%clk 0:02:20]} 13. Rxd8 {[%clk 0:02:53]}  Bxd8 {[%clk 0:02:21]} 14. Bh6 {[%clk 0:02:51]}  Re8 {[%clk 0:02:18]} 15. Be2 {[%clk 0:02:49]}  Bf5 {[%clk 0:02:17]} 16. Qb3 {[%clk 0:02:47]}  Be4 {[%clk 0:02:11]} 17. O-O {[%clk 0:02:47]}  Bf6 {[%clk 0:02:10]} 18. f3 {[%clk 0:02:43]}  Bc6 {[%clk 0:02:09]} 19. Rd1 {[%clk 0:02:42]}  Nd7 {[%clk 0:02:02]} 20. e4 {[%clk 0:02:38]}  a5 {[%clk 0:01:54]} 21. Be3 {[%clk 0:02:35]}  b6 {[%clk 0:01:51]} 22. Bd4 {[%clk 0:02:30]}  Nc5 {[%clk 0:01:43]} 23. Qe3 {[%clk 0:02:30]}  Be7 {[%clk 0:01:41]} 24. h4 {[%clk 0:02:27]}  Ne6 {[%clk 0:01:40]} 25. Kh2 {[%clk 0:02:21]}  Nxd4 {[%clk 0:01:11]} 26. Qxd4 {[%clk 0:02:20]}  Bxh4 {[%clk 0:01:11]} 27. e5 {[%clk 0:02:12]}  Be7 {[%clk 0:01:10]} 28. Qf4 {[%clk 0:02:01]}  Kg7 {[%clk 0:01:07]} 29. c5 {[%clk 0:01:48]}  bxc5 {[%clk 0:00:33]} 30. Bc4 {[%clk 0:01:48]}  Rf8 {[%clk 0:00:33]} 31. e6 {[%clk 0:01:47]}  f6 {[%clk 0:00:08]} 32. Qxc7 {[%clk 0:01:47]} 1-0


[Site "https://www.chess.com"]